[Event "Titled Tuesday Blitz November 15 Early 2022"]
[White "Sreyas Payyappat"]
[Black "Gurvich, Vitaly"]
[WhiteFideId "46674969"]
[BlackFideId "24164852"]
[WhiteElo "2083"]
[BlackElo "2342"]
[Result "1-0"]
[Round "03"]
[TimeControl "180+1"]
[Date "2022.11.16"]
[WhiteClock "0:00:06"]
[BlackClock "0:00:03"]

1. e4 {[%clk 0:03:00]}  c6 {[%clk 0:02:58]} 2. d4 {[%clk 0:03:00]}  d5 {[%clk 0:02:56]} 3. Nc3 {[%clk 0:03:01]}  dxe4 {[%clk 0:02:55]} 4. Nxe4 {[%clk 0:03:02]}  Nf6 {[%clk 0:02:56]} 5. Nxf6+ {[%clk 0:03:01]}  exf6 {[%clk 0:02:57]} 6. Bc4 {[%clk 0:03:01]}  Bd6 {[%clk 0:02:56]} 7. Qe2+ {[%clk 0:03:01]}  Be7 {[%clk 0:02:56]} 8. Nf3 {[%clk 0:03:00]}  O-O {[%clk 0:02:57]} 9. O-O {[%clk 0:03:00]}  Bd6 {[%clk 0:02:51]} 10. Re1 {[%clk 0:02:59]}  Nd7 {[%clk 0:02:49]} 11. c3 {[%clk 0:02:55]}  Nb6 {[%clk 0:02:45]} 12. Bd3 {[%clk 0:02:54]}  Bg4 {[%clk 0:02:44]} 13. h3 {[%clk 0:02:53]}  Bh5 {[%clk 0:02:44]} 14. g4 {[%clk 0:02:52]}  Bg6 {[%clk 0:02:43]} 15. Bxg6 {[%clk 0:02:52]}  hxg6 {[%clk 0:02:43]} 16. g5 {[%clk 0:02:30]}  Qd7 {[%clk 0:02:37]} 17. Kg2 {[%clk 0:02:25]}  Rae8 {[%clk 0:02:32]} 18. Be3 {[%clk 0:02:23]}  Qf5 {[%clk 0:02:17]} 19. Qd2 {[%clk 0:02:09]}  Nc4 {[%clk 0:02:12]} 20. Qc1 {[%clk 0:02:04]}  fxg5 {[%clk 0:01:55]} 21. Bxg5 {[%clk 0:01:27]}  Rxe1 {[%clk 0:01:36]} 22. Qxe1 {[%clk 0:01:21]}  Nxb2 {[%clk 0:01:34]} 23. Qe3 {[%clk 0:00:48]}  Nc4 {[%clk 0:01:24]} 24. Qe2 {[%clk 0:00:46]}  Qd5 {[%clk 0:01:14]} 25. Re1 {[%clk 0:00:29]}  b5 {[%clk 0:01:11]} 26. Kg1 {[%clk 0:00:20]}  a5 {[%clk 0:01:07]} 27. Bc1 {[%clk 0:00:19]}  f6 {[%clk 0:00:40]} 28. Nh4 {[%clk 0:00:14]}  Qf7 {[%clk 0:00:16]} 29. Qg4 {[%clk 0:00:14]}  g5 {[%clk 0:00:14]} 30. Nf5 {[%clk 0:00:13]}  Kh7 {[%clk 0:00:15]} 31. h4 {[%clk 0:00:13]}  gxh4 {[%clk 0:00:10]} 32. Qxh4+ {[%clk 0:00:12]}  Kg8 {[%clk 0:00:11]} 33. Re4 {[%clk 0:00:11]}  Qg6+ {[%clk 0:00:10]} 34. Qg4 {[%clk 0:00:10]}  Qxg4+ {[%clk 0:00:10]} 35. Rxg4 {[%clk 0:00:11]}  Kf7 {[%clk 0:00:07]} 36. Rxg7+ {[%clk 0:00:10]}  Ke6 {[%clk 0:00:07]} 37. Nxd6 {[%clk 0:00:10]}  Nxd6 {[%clk 0:00:07]} 38. Rc7 {[%clk 0:00:10]}  Kd5 {[%clk 0:00:07]} 39. Bf4 {[%clk 0:00:10]}  Ne4 {[%clk 0:00:07]} 40. f3 {[%clk 0:00:09]}  Nxc3 {[%clk 0:00:06]} 41. Rd7+ {[%clk 0:00:09]}  Kc4 {[%clk 0:00:07]} 42. Bd6 {[%clk 0:00:08]}  Re8 {[%clk 0:00:06]} 43. Bc5 {[%clk 0:00:08]}  a4 {[%clk 0:00:06]} 44. Rd6 {[%clk 0:00:08]}  Nxa2 {[%clk 0:00:04]} 45. Rxc6 {[%clk 0:00:08]}  Kb3 {[%clk 0:00:05]} 46. Rxf6 {[%clk 0:00:08]}  b4 {[%clk 0:00:05]} 47. Rb6 {[%clk 0:00:08]}  Kc4 {[%clk 0:00:05]} 48. f4 {[%clk 0:00:08]}  a3 {[%clk 0:00:05]} 49. f5 {[%clk 0:00:08]}  Re4 {[%clk 0:00:04]} 50. f6 {[%clk 0:00:08]}  Rf4 {[%clk 0:00:05]} 51. Kg2 {[%clk 0:00:05]}  Rf5 {[%clk 0:00:04]} 52. Kg3 {[%clk 0:00:05]}  Rf2 {[%clk 0:00:03]} 53. Kxf2 {[%clk 0:00:05]}  Kd3 {[%clk 0:00:02]} 54. f7 {[%clk 0:00:05]}  Nc3 {[%clk 0:00:02]} 55. f8=Q {[%clk 0:00:06]}  Ne4+ {[%clk 0:00:03]} 56. Kg2 {[%clk 0:00:05]}  a2 {[%clk 0:00:04]} 57. Qf3+ {[%clk 0:00:05]}  Kc4 {[%clk 0:00:04]} 58. Qe2+ {[%clk 0:00:05]}  Kd5 {[%clk 0:00:04]} 59. Qxa2+ {[%clk 0:00:05]}  b3 {[%clk 0:00:03]} 60. Qxb3# {[%clk 0:00:06]} 1-0


[Site "https://www.chess.com"]

[Event "Titled Tuesday Blitz November 15 Early 2022"]
[White "Suder, Jakub"]
[Black "Rios Escobar, Adan"]
[WhiteFideId "1195310"]
[BlackFideId "3403645"]
[WhiteElo "2243"]
[BlackElo "2357"]
[Result "1-0"]
[Round "03"]
[TimeControl "180+1"]
[Date "2022.11.16"]
[WhiteClock "0:00:57"]
[BlackClock "0:00:01"]

1. d4 {[%clk 0:02:54]}  Nf6 {[%clk 0:02:59]} 2. c4 {[%clk 0:02:47]}  g6 {[%clk 0:02:57]} 3. Nc3 {[%clk 0:02:46]}  Bg7 {[%clk 0:02:57]} 4. e4 {[%clk 0:02:46]}  d6 {[%clk 0:02:58]} 5. Nf3 {[%clk 0:02:46]}  O-O {[%clk 0:02:58]} 6. Be2 {[%clk 0:02:43]}  Na6 {[%clk 0:02:58]} 7. O-O {[%clk 0:02:42]}  e5 {[%clk 0:02:58]} 8. Be3 {[%clk 0:02:20]}  Qe7 {[%clk 0:02:56]} 9. dxe5 {[%clk 0:02:19]}  dxe5 {[%clk 0:02:41]} 10. Qc2 {[%clk 0:02:18]}  c6 {[%clk 0:02:33]} 11. a3 {[%clk 0:02:15]}  Ng4 {[%clk 0:02:31]} 12. Bg5 {[%clk 0:02:10]}  f6 {[%clk 0:02:31]} 13. Bd2 {[%clk 0:02:10]}  f5 {[%clk 0:02:16]} 14. h3 {[%clk 0:02:04]}  Nf6 {[%clk 0:02:14]} 15. exf5 {[%clk 0:02:05]}  Bxf5 {[%clk 0:02:03]} 16. Qc1 {[%clk 0:02:04]}  Nc5 {[%clk 0:01:59]} 17. Qd1 {[%clk 0:01:58]}  Rad8 {[%clk 0:01:55]} 18. b4 {[%clk 0:01:55]}  Nce4 {[%clk 0:01:42]} 19. Qc1 {[%clk 0:01:55]}  Nxd2 {[%clk 0:01:37]} 20. Nxd2 {[%clk 0:01:56]}  Bh6 {[%clk 0:01:36]} 21. Ra2 {[%clk 0:01:54]}  Rd4 {[%clk 0:01:24]} 22. Qe1 {[%clk 0:01:48]}  e4 {[%clk 0:00:45]} 23. Nb3 {[%clk 0:01:42]}  Rdd8 {[%clk 0:00:45]} 24. Kh1 {[%clk 0:01:34]}  Qe6 {[%clk 0:00:40]} 25. Nc5 {[%clk 0:01:21]}  Qc8 {[%clk 0:00:36]} 26. g4 {[%clk 0:01:21]}  Nxg4 {[%clk 0:00:21]} 27. hxg4 {[%clk 0:01:19]}  Bxg4 {[%clk 0:00:20]} 28. N5xe4 {[%clk 0:01:07]}  Bxe2 {[%clk 0:00:10]} 29. Qxe2 {[%clk 0:01:07]}  Qh3+ {[%clk 0:00:10]} 30. Kg1 {[%clk 0:01:08]}  Bf4 {[%clk 0:00:07]} 31. f3 {[%clk 0:01:06]}  Rd3 {[%clk 0:00:05]} 32. Qxd3 {[%clk 0:01:02]}  Bg3 {[%clk 0:00:01]} 33. Rg2 {[%clk 0:01:01]}  Bh4 {[%clk 0:00:01]} 34. Ne2 {[%clk 0:00:57]} 1-0


[Site "https://www.chess.com"]

[Event "Titled Tuesday Blitz November 15 Early 2022"]
[White "Szpar, Milosz"]
[Black "Fathy, Elameir"]
[WhiteFideId "1184989"]
[BlackFideId "10600396"]
[WhiteElo "2422"]
[BlackElo "2311"]
[Result "0-1"]
[Round "03"]
[TimeControl "180+1"]
[Date "2022.11.16"]
[WhiteClock "0:01:07"]
[BlackClock "0:00:16"]

1. e4 {[%clk 0:03:00]}  c5 {[%clk 0:02:59]} 2. Nf3 {[%clk 0:02:59]}  d6 {[%clk 0:03:00]} 3. d4 {[%clk 0:02:58]}  cxd4 {[%clk 0:03:01]} 4. Nxd4 {[%clk 0:02:59]}  Nf6 {[%clk 0:03:01]} 5. Nc3 {[%clk 0:02:59]}  a6 {[%clk 0:03:02]} 6. Bg5 {[%clk 0:03:00]}  e6 {[%clk 0:03:02]} 7. f4 {[%clk 0:02:58]}  Be7 {[%clk 0:03:02]} 8. Qf3 {[%clk 0:02:57]}  Qc7 {[%clk 0:03:02]} 9. O-O-O {[%clk 0:02:57]}  Nbd7 {[%clk 0:03:03]} 10. g4 {[%clk 0:02:57]}  h6 {[%clk 0:03:03]} 11. Bxf6 {[%clk 0:02:54]}  Bxf6 {[%clk 0:03:04]} 12. h4 {[%clk 0:02:48]}  Nb6 {[%clk 0:03:04]} 13. Nde2 {[%clk 0:02:38]}  Bd7 {[%clk 0:03:00]} 14. g5 {[%clk 0:02:38]}  Be7 {[%clk 0:02:59]} 15. Bh3 {[%clk 0:02:34]}  O-O-O {[%clk 0:02:54]} 16. Nd4 {[%clk 0:02:33]}  g6 {[%clk 0:02:36]} 17. Rhg1 {[%clk 0:02:30]}  hxg5 {[%clk 0:02:30]} 18. hxg5 {[%clk 0:02:31]}  Rxh3 {[%clk 0:01:53]} 19. Qxh3 {[%clk 0:02:30]}  e5 {[%clk 0:01:53]} 20. Qh7 {[%clk 0:02:27]}  exd4 {[%clk 0:01:53]} 21. Rxd4 {[%clk 0:02:28]}  d5 {[%clk 0:01:30]} 22. Nxd5 {[%clk 0:02:20]}  Nxd5 {[%clk 0:01:30]} 23. Rxd5 {[%clk 0:02:21]}  Qxf4+ {[%clk 0:01:30]} 24. Kb1 {[%clk 0:02:17]}  Be6 {[%clk 0:01:23]} 25. Rxd8+ {[%clk 0:02:16]}  Bxd8 {[%clk 0:01:23]} 26. Qh8 {[%clk 0:02:08]}  Qxe4 {[%clk 0:01:15]} 27. Qc3+ {[%clk 0:02:07]}  Qc6 {[%clk 0:01:12]} 28. Qe5 {[%clk 0:02:04]}  Qd5 {[%clk 0:01:09]} 29. Qc3+ {[%clk 0:02:03]}  Kb8 {[%clk 0:01:09]} 30. b3 {[%clk 0:02:02]}  Bb6 {[%clk 0:01:01]} 31. Re1 {[%clk 0:01:47]}  Bd4 {[%clk 0:01:00]} 32. Qg3+ {[%clk 0:01:45]}  Ka7 {[%clk 0:01:00]} 33. Rd1 {[%clk 0:01:46]}  Qc5 {[%clk 0:00:55]} 34. Qh4 {[%clk 0:01:41]}  Bg7 {[%clk 0:00:49]} 35. Qg3 {[%clk 0:01:35]}  Bf5 {[%clk 0:00:46]} 36. Rd2 {[%clk 0:01:34]}  Be5 {[%clk 0:00:38]} 37. Qf2 {[%clk 0:01:32]}  Qxf2 {[%clk 0:00:38]} 38. Rxf2 {[%clk 0:01:33]}  Bd4 {[%clk 0:00:36]} 39. Rf3 {[%clk 0:01:30]}  Kb6 {[%clk 0:00:34]} 40. Kc1 {[%clk 0:01:30]}  Kc5 {[%clk 0:00:35]} 41. Kd2 {[%clk 0:01:30]}  Kd5 {[%clk 0:00:34]} 42. c3 {[%clk 0:01:30]}  Be5 {[%clk 0:00:34]} 43. c4+ {[%clk 0:01:19]}  Ke4 {[%clk 0:00:34]} 44. Rf2 {[%clk 0:01:20]}  Bf4+ {[%clk 0:00:33]} 45. Kc3 {[%clk 0:01:21]}  Bxg5 {[%clk 0:00:33]} 46. b4 {[%clk 0:01:21]}  Bf6+ {[%clk 0:00:33]} 47. Kb3 {[%clk 0:01:22]}  Bd4 {[%clk 0:00:31]} 48. Re2+ {[%clk 0:01:21]}  Kd3 {[%clk 0:00:30]} 49. Re7 {[%clk 0:01:21]}  b5 {[%clk 0:00:27]} 50. c5 {[%clk 0:01:19]}  Bf6 {[%clk 0:00:25]} 51. Re8 {[%clk 0:01:13]}  Be6+ {[%clk 0:00:20]} 52. Ka3 {[%clk 0:01:14]}  Kc2 {[%clk 0:00:17]} 53. c6 {[%clk 0:01:07]}  Bb2# {[%clk 0:00:16]} 0-1


[Site "https://www.chess.com"]

[Event "Titled Tuesday Blitz November 15 Early 2022"]
[White "Tanenbaum, Zachary"]
[Black "Lenderman, Aleksandr"]
[WhiteFideId "2060850"]
[BlackFideId "2021285"]
[WhiteElo "2175"]
[BlackElo "2607"]
[Result "1-0"]
[Round "03"]
[TimeControl "180+1"]
[Date "2022.11.15"]
[WhiteClock "0:00:49"]
[BlackClock "0:01:01"]

1. e4 {[%clk 0:03:00]}  g6 {[%clk 0:03:00]} 2. d4 {[%clk 0:03:00]}  Nf6 {[%clk 0:03:01]} 3. Nc3 {[%clk 0:03:01]}  d5 {[%clk 0:02:59]} 4. e5 {[%clk 0:02:59]}  Ne4 {[%clk 0:02:59]} 5. Bd3 {[%clk 0:02:55]}  Nxc3 {[%clk 0:02:59]} 6. bxc3 {[%clk 0:02:56]}  c5 {[%clk 0:02:59]} 7. Nf3 {[%clk 0:02:54]}  Nc6 {[%clk 0:02:59]} 8. O-O {[%clk 0:02:52]}  Bg4 {[%clk 0:02:59]} 9. dxc5 {[%clk 0:02:42]}  Bg7 {[%clk 0:02:51]} 10. Bf4 {[%clk 0:02:42]}  O-O {[%clk 0:02:34]} 11. Re1 {[%clk 0:02:40]}  Qa5 {[%clk 0:02:29]} 12. Rb1 {[%clk 0:02:36]}  Qc7 {[%clk 0:02:18]} 13. h3 {[%clk 0:02:32]}  Bxf3 {[%clk 0:02:13]} 14. Qxf3 {[%clk 0:02:33]}  e6 {[%clk 0:02:08]} 15. c4 {[%clk 0:02:26]}  dxc4 {[%clk 0:02:01]} 16. Bxc4 {[%clk 0:02:27]}  Bxe5 {[%clk 0:02:00]} 17. Bxe5 {[%clk 0:02:21]}  Nxe5 {[%clk 0:02:01]} 18. Qf4 {[%clk 0:02:20]}  f6 {[%clk 0:01:56]} 19. Bxe6+ {[%clk 0:02:20]}  Kh8 {[%clk 0:01:57]} 20. Rbd1 {[%clk 0:02:08]}  Rae8 {[%clk 0:01:47]} 21. Qh6 {[%clk 0:01:05]}  Qxc5 {[%clk 0:01:42]} 22. Rd5 {[%clk 0:00:58]}  Qe7 {[%clk 0:01:35]} 23. Rexe5 {[%clk 0:00:57]}  fxe5 {[%clk 0:01:31]} 24. Rd7 {[%clk 0:00:56]}  Rf6 {[%clk 0:01:10]} 25. Rxe7 {[%clk 0:00:56]}  Rxe7 {[%clk 0:01:11]} 26. Bd5 {[%clk 0:00:53]}  e4 {[%clk 0:01:11]} 27. Qg5 {[%clk 0:00:52]}  Kg7 {[%clk 0:01:12]} 28. Qe3 {[%clk 0:00:51]}  b6 {[%clk 0:01:07]} 29. Bxe4 {[%clk 0:00:51]}  Rfe6 {[%clk 0:01:06]} 30. Qd4+ {[%clk 0:00:51]}  Kh6 {[%clk 0:01:03]} 31. f3 {[%clk 0:00:51]}  Re5 {[%clk 0:01:04]} 32. h4 {[%clk 0:00:51]}  Rc5 {[%clk 0:01:02]} 33. g4 {[%clk 0:00:50]}  Ree5 {[%clk 0:01:01]} 34. g5+ {[%clk 0:00:49]}  Kh5 {[%clk 0:01:01]} 35. Bd3 {[%clk 0:00:49]} 1-0


[Site "https://www.chess.com"]

[Event "Titled Tuesday Blitz November 15 Early 2022"]
[White "Tarasova, Viktoriya"]
[Black "Aggelis, Nikolaos"]
[WhiteFideId "4175840"]
[BlackFideId "4213220"]
[WhiteElo "2182"]
[BlackElo "2189"]
[Result "0-1"]
[Round "03"]
[TimeControl "180+1"]
[Date "2022.11.16"]
[WhiteClock "0:00:03"]
[BlackClock "0:00:38"]

1. d4 {[%clk 0:02:56]}  c6 {[%clk 0:03:00]} 2. c4 {[%clk 0:02:56]}  Nf6 {[%clk 0:03:00]} 3. Nc3 {[%clk 0:02:55]}  d5 {[%clk 0:02:58]} 4. Nf3 {[%clk 0:02:54]}  g6 {[%clk 0:02:58]} 5. e3 {[%clk 0:02:53]}  Bg7 {[%clk 0:02:58]} 6. Be2 {[%clk 0:02:53]}  O-O {[%clk 0:02:59]} 7. O-O {[%clk 0:02:53]}  c5 {[%clk 0:03:00]} 8. dxc5 {[%clk 0:02:50]}  dxc4 {[%clk 0:02:59]} 9. Bxc4 {[%clk 0:02:50]}  Nbd7 {[%clk 0:02:55]} 10. c6 {[%clk 0:02:48]}  bxc6 {[%clk 0:02:55]} 11. Qc2 {[%clk 0:02:47]}  Nb6 {[%clk 0:02:51]} 12. Bd3 {[%clk 0:02:43]}  Nfd5 {[%clk 0:02:51]} 13. Nxd5 {[%clk 0:02:40]}  cxd5 {[%clk 0:02:49]} 14. Qe2 {[%clk 0:02:34]}  Bf5 {[%clk 0:02:41]} 15. Bxf5 {[%clk 0:02:33]}  gxf5 {[%clk 0:02:42]} 16. Rb1 {[%clk 0:02:27]}  e6 {[%clk 0:02:41]} 17. b3 {[%clk 0:02:27]}  a5 {[%clk 0:02:32]} 18. Ba3 {[%clk 0:02:26]}  Re8 {[%clk 0:02:29]} 19. Bb2 {[%clk 0:02:24]}  a4 {[%clk 0:02:28]} 20. Bxg7 {[%clk 0:02:23]}  Kxg7 {[%clk 0:02:29]} 21. Qb2+ {[%clk 0:02:19]}  Qf6 {[%clk 0:02:28]} 22. Rfc1 {[%clk 0:02:02]}  Qxb2 {[%clk 0:02:25]} 23. Rxb2 {[%clk 0:02:02]}  axb3 {[%clk 0:02:25]} 24. axb3 {[%clk 0:02:01]}  Rec8 {[%clk 0:02:25]} 25. Rcb1 {[%clk 0:01:51]}  Kf6 {[%clk 0:02:20]} 26. h3 {[%clk 0:01:51]}  e5 {[%clk 0:02:19]} 27. Nd2 {[%clk 0:01:45]}  Ke6 {[%clk 0:02:18]} 28. Kf1 {[%clk 0:01:44]}  Rc3 {[%clk 0:01:58]} 29. Ke2 {[%clk 0:01:43]}  h5 {[%clk 0:01:54]} 30. Nf3 {[%clk 0:01:38]}  f6 {[%clk 0:01:38]} 31. Nd2 {[%clk 0:01:23]}  Ra3 {[%clk 0:01:36]} 32. Nf1 {[%clk 0:01:17]}  Ra7 {[%clk 0:01:34]} 33. h4 {[%clk 0:01:11]}  f4 {[%clk 0:01:29]} 34. Kd2 {[%clk 0:00:51]}  Rac7 {[%clk 0:01:25]} 35. Ra1 {[%clk 0:00:47]}  fxe3+ {[%clk 0:01:24]} 36. fxe3 {[%clk 0:00:46]}  R3c6 {[%clk 0:01:14]} 37. Ng3 {[%clk 0:00:45]}  Rg7 {[%clk 0:01:13]} 38. Ne2 {[%clk 0:00:25]}  Rxg2 {[%clk 0:01:12]} 39. Rg1 {[%clk 0:00:24]}  Rxg1 {[%clk 0:01:12]} 40. Nxg1 {[%clk 0:00:25]}  Kf5 {[%clk 0:01:11]} 41. Ne2 {[%clk 0:00:22]}  Kg4 {[%clk 0:01:10]} 42. Rb1 {[%clk 0:00:18]}  Kxh4 {[%clk 0:01:06]} 43. Rg1 {[%clk 0:00:18]}  Nd7 {[%clk 0:00:55]} 44. Ng3 {[%clk 0:00:18]}  Ra6 {[%clk 0:00:52]} 45. Nf5+ {[%clk 0:00:17]}  Kh3 {[%clk 0:00:52]} 46. Ng7 {[%clk 0:00:12]}  h4 {[%clk 0:00:50]} 47. Nf5 {[%clk 0:00:12]}  Ra2+ {[%clk 0:00:48]} 48. Kc3 {[%clk 0:00:12]}  Nc5 {[%clk 0:00:48]} 49. b4 {[%clk 0:00:11]}  Ne4+ {[%clk 0:00:48]} 50. Kb3 {[%clk 0:00:12]}  Rf2 {[%clk 0:00:48]} 51. Rh1+ {[%clk 0:00:07]}  Kg4 {[%clk 0:00:46]} 52. Rxh4+ {[%clk 0:00:07]}  Kxf5 {[%clk 0:00:46]} 53. b5 {[%clk 0:00:06]}  Rf1 {[%clk 0:00:45]} 54. Rh5+ {[%clk 0:00:05]}  Ke6 {[%clk 0:00:44]} 55. Kb4 {[%clk 0:00:05]}  Rb1+ {[%clk 0:00:44]} 56. Ka5 {[%clk 0:00:04]}  Nc3 {[%clk 0:00:43]} 57. b6 {[%clk 0:00:04]}  Nd1 {[%clk 0:00:42]} 58. Rh1 {[%clk 0:00:03]}  Ra1+ {[%clk 0:00:36]} 59. Kb5 {[%clk 0:00:03]}  Nc3+ {[%clk 0:00:36]} 60. Kc6 {[%clk 0:00:02]}  Rxh1 {[%clk 0:00:37]} 61. b7 {[%clk 0:00:02]}  Rb1 {[%clk 0:00:37]} 62. Kc7 {[%clk 0:00:03]}  Rxb7+ {[%clk 0:00:38]} 0-1


[Site "https://www.chess.com"]

[Event "Titled Tuesday Blitz November 15 Early 2022"]
[White "Ter-Sahakyan, Samvel"]
[Black "Fieberg, Samuel"]
[WhiteFideId "13302531"]
[BlackFideId "12901717"]
[WhiteElo "2584"]
[BlackElo "2508"]
[Result "1-0"]
[Round "03"]
[TimeControl "180+1"]
[Date "2022.11.16"]
[WhiteClock "0:00:22"]
[BlackClock "0:00:11"]

1. d4 {[%clk 0:02:59]}  e6 {[%clk 0:03:00]} 2. c4 {[%clk 0:02:58]}  d5 {[%clk 0:03:00]} 3. Nc3 {[%clk 0:02:58]}  a6 {[%clk 0:03:00]} 4. cxd5 {[%clk 0:02:54]}  exd5 {[%clk 0:03:01]} 5. Nf3 {[%clk 0:02:55]}  h6 {[%clk 0:03:02]} 6. Bf4 {[%clk 0:02:53]}  Nf6 {[%clk 0:03:02]} 7. e3 {[%clk 0:02:53]}  Bd6 {[%clk 0:03:03]} 8. Bxd6 {[%clk 0:02:51]}  Qxd6 {[%clk 0:03:04]} 9. Bd3 {[%clk 0:02:51]}  Bg4 {[%clk 0:03:04]} 10. Qb3 {[%clk 0:02:48]}  Nbd7 {[%clk 0:02:48]} 11. Qxb7 {[%clk 0:02:42]}  O-O {[%clk 0:02:42]} 12. Qb3 {[%clk 0:02:39]}  Bxf3 {[%clk 0:02:42]} 13. gxf3 {[%clk 0:02:39]}  c5 {[%clk 0:02:43]} 14. Qa3 {[%clk 0:02:35]}  Qb6 {[%clk 0:02:26]} 15. O-O-O {[%clk 0:02:12]}  cxd4 {[%clk 0:02:18]} 16. exd4 {[%clk 0:02:13]}  Rfc8 {[%clk 0:02:08]} 17. Kb1 {[%clk 0:02:13]}  Rab8 {[%clk 0:02:04]} 18. Ka1 {[%clk 0:02:13]}  a5 {[%clk 0:01:56]} 19. Rhe1 {[%clk 0:02:09]}  Nf8 {[%clk 0:01:51]} 20. Na4 {[%clk 0:01:50]}  Qb4 {[%clk 0:01:51]} 21. Qxb4 {[%clk 0:01:47]}  Rxb4 {[%clk 0:01:52]} 22. Nc3 {[%clk 0:01:40]}  Ne6 {[%clk 0:01:44]} 23. Ne2 {[%clk 0:01:15]}  Kf8 {[%clk 0:01:32]} 24. Bf5 {[%clk 0:01:14]}  Rcb8 {[%clk 0:01:27]} 25. Bxe6 {[%clk 0:01:07]}  fxe6 {[%clk 0:01:28]} 26. Rd2 {[%clk 0:01:07]}  Kf7 {[%clk 0:01:22]} 27. Nf4 {[%clk 0:01:04]}  R8b6 {[%clk 0:01:14]} 28. Nd3 {[%clk 0:01:03]}  R4b5 {[%clk 0:01:06]} 29. b3 {[%clk 0:01:02]}  Nd7 {[%clk 0:01:01]} 30. Rc1 {[%clk 0:00:59]}  a4 {[%clk 0:00:54]} 31. b4 {[%clk 0:00:59]}  Ke7 {[%clk 0:00:43]} 32. a3 {[%clk 0:00:58]}  Rb8 {[%clk 0:00:31]} 33. Rc6 {[%clk 0:00:56]}  Rf8 {[%clk 0:00:28]} 34. f4 {[%clk 0:00:53]}  g5 {[%clk 0:00:26]} 35. Re2 {[%clk 0:00:53]}  Rf6 {[%clk 0:00:26]} 36. f5 {[%clk 0:00:53]}  Rxf5 {[%clk 0:00:23]} 37. Rcxe6+ {[%clk 0:00:50]}  Kd8 {[%clk 0:00:23]} 38. Rxh6 {[%clk 0:00:49]}  Rf3 {[%clk 0:00:22]} 39. Re3 {[%clk 0:00:49]}  Rf5 {[%clk 0:00:15]} 40. Rh8+ {[%clk 0:00:42]}  Kc7 {[%clk 0:00:15]} 41. Rh7 {[%clk 0:00:43]}  Kd6 {[%clk 0:00:15]} 42. Kb2 {[%clk 0:00:41]}  Nf6 {[%clk 0:00:15]} 43. Rh6 {[%clk 0:00:31]}  Kc7 {[%clk 0:00:14]} 44. Re7+ {[%clk 0:00:22]}  Kd8 {[%clk 0:00:14]} 45. Rf7 {[%clk 0:00:22]}  Rb6 {[%clk 0:00:11]} 46. Rh8+ {[%clk 0:00:21]}  Ne8 {[%clk 0:00:11]} 47. Rxf5 {[%clk 0:00:22]} 1-0


[Site "https://www.chess.com"]

[Event "Titled Tuesday Blitz November 15 Early 2022"]
[White "Thiel, Thomas"]
[Black "Manelyuk, Daniil"]
[WhiteFideId "4615964"]
[BlackFideId "44173920"]
[WhiteElo "2229"]
[BlackElo "2209"]
[Result "0-1"]
[Round "03"]
[TimeControl "180+1"]
[Date "2022.11.16"]
[WhiteClock "0:02:10"]
[BlackClock "0:02:35"]

1. e4 {[%clk 0:03:00]}  e6 {[%clk 0:02:59]} 2. d4 {[%clk 0:02:59]}  d5 {[%clk 0:03:00]} 3. Nc3 {[%clk 0:02:58]}  Bb4 {[%clk 0:02:57]} 4. e5 {[%clk 0:02:57]}  c5 {[%clk 0:02:57]} 5. a3 {[%clk 0:02:56]}  Bxc3+ {[%clk 0:02:57]} 6. bxc3 {[%clk 0:02:57]}  Ne7 {[%clk 0:02:58]} 7. Qg4 {[%clk 0:02:57]}  Qc7 {[%clk 0:02:58]} 8. Qxg7 {[%clk 0:02:56]}  Rg8 {[%clk 0:02:58]} 9. Qxh7 {[%clk 0:02:56]}  cxd4 {[%clk 0:02:56]} 10. Ne2 {[%clk 0:02:55]}  Nbc6 {[%clk 0:02:57]} 11. f4 {[%clk 0:02:55]}  Bd7 {[%clk 0:02:57]} 12. Qd3 {[%clk 0:02:51]}  dxc3 {[%clk 0:02:57]} 13. Nxc3 {[%clk 0:02:45]}  a6 {[%clk 0:02:55]} 14. Ne2 {[%clk 0:02:44]}  O-O-O {[%clk 0:02:50]} 15. Bb2 {[%clk 0:02:42]}  Nf5 {[%clk 0:02:48]} 16. O-O-O {[%clk 0:02:38]}  Na5 {[%clk 0:02:45]} 17. Nd4 {[%clk 0:02:31]}  Nxd4 {[%clk 0:02:38]} 18. Qxd4 {[%clk 0:02:31]}  Kb8 {[%clk 0:02:38]} 19. h4 {[%clk 0:02:16]}  Rc8 {[%clk 0:02:36]} 20. Rd2 {[%clk 0:02:10]}  Nb3+ {[%clk 0:02:35]} 0-1


[Site "https://www.chess.com"]

[Event "Titled Tuesday Blitz November 15 Early 2022"]
[White "Timofeev, Artyom"]
[Black "Al-Tarboush, Ward"]
[WhiteFideId "4140419"]
[BlackFideId "7601450"]
[WhiteElo "2586"]
[BlackElo "2273"]
[Result "1-0"]
[Round "03"]
[TimeControl "180+1"]
[Date "2022.11.16"]
[WhiteClock "0:00:39"]
[BlackClock "0:00:01"]

1. d4 {[%clk 0:03:00]}  Nf6 {[%clk 0:02:58]} 2. Bf4 {[%clk 0:02:59]}  g6 {[%clk 0:02:58]} 3. Nc3 {[%clk 0:02:58]}  d5 {[%clk 0:02:56]} 4. Qd2 {[%clk 0:02:58]}  c6 {[%clk 0:02:52]} 5. Nf3 {[%clk 0:02:47]}  Bf5 {[%clk 0:02:50]} 6. Ne5 {[%clk 0:02:45]}  Bg7 {[%clk 0:02:45]} 7. f3 {[%clk 0:02:44]}  h5 {[%clk 0:02:40]} 8. O-O-O {[%clk 0:02:40]}  b5 {[%clk 0:02:35]} 9. Kb1 {[%clk 0:02:39]}  a5 {[%clk 0:02:33]} 10. Re1 {[%clk 0:02:31]}  a4 {[%clk 0:02:01]} 11. e4 {[%clk 0:02:30]}  Be6 {[%clk 0:02:02]} 12. a3 {[%clk 0:02:23]}  O-O {[%clk 0:01:45]} 13. Bh6 {[%clk 0:02:18]}  Bxh6 {[%clk 0:01:10]} 14. Qxh6 {[%clk 0:02:17]}  dxe4 {[%clk 0:01:10]} 15. Nxe4 {[%clk 0:02:12]}  Nxe4 {[%clk 0:00:41]} 16. fxe4 {[%clk 0:02:11]}  Qe8 {[%clk 0:00:20]} 17. Bd3 {[%clk 0:01:57]}  Nd7 {[%clk 0:00:19]} 18. Nxc6 {[%clk 0:01:56]}  Nf6 {[%clk 0:00:19]} 19. d5 {[%clk 0:01:53]}  Bd7 {[%clk 0:00:17]} 20. Ne5 {[%clk 0:01:53]}  b4 {[%clk 0:00:12]} 21. axb4 {[%clk 0:01:51]}  a3 {[%clk 0:00:11]} 22. b3 {[%clk 0:01:46]}  a2+ {[%clk 0:00:12]} 23. Kb2 {[%clk 0:01:45]}  Qb8 {[%clk 0:00:11]} 24. Nc4 {[%clk 0:01:34]}  Qxb4 {[%clk 0:00:06]} 25. Qd2 {[%clk 0:01:34]}  Qc5 {[%clk 0:00:06]} 26. Ka1 {[%clk 0:01:30]}  Bb5 {[%clk 0:00:06]} 27. Qc3 {[%clk 0:01:23]}  Ng4 {[%clk 0:00:05]} 28. h3 {[%clk 0:01:18]}  Nf2 {[%clk 0:00:05]} 29. Rhf1 {[%clk 0:01:18]}  Rfc8 {[%clk 0:00:03]} 30. Re2 {[%clk 0:01:10]}  Nxd3 {[%clk 0:00:03]} 31. cxd3 {[%clk 0:01:10]}  Qc7 {[%clk 0:00:02]} 32. Ref2 {[%clk 0:01:09]}  f6 {[%clk 0:00:01]} 33. d6 {[%clk 0:01:00]}  Qd7 {[%clk 0:00:01]} 34. dxe7 {[%clk 0:01:00]}  Qxe7 {[%clk 0:00:02]} 35. Rxf6 {[%clk 0:00:59]}  Qe8 {[%clk 0:00:01]} 36. g4 {[%clk 0:00:48]}  Bxc4 {[%clk 0:00:02]} 37. bxc4 {[%clk 0:00:48]}  Rcb8 {[%clk 0:00:02]} 38. gxh5 {[%clk 0:00:40]}  Rb1+ {[%clk 0:00:01]} 39. Rxb1 {[%clk 0:00:40]}  axb1=Q+ {[%clk 0:00:02]} 40. Kxb1 {[%clk 0:00:40]}  Qb8+ {[%clk 0:00:02]} 41. Qb2 {[%clk 0:00:39]}  Qg3 {[%clk 0:00:01]} 42. Rxg6+ {[%clk 0:00:39]} 1-0


[Site "https://www.chess.com"]